[Event "Early-Titled-Tuesday-Blitz-June-18-2024"]
[Site "Chess.com"]
[Date "2024.06.18"]
[Round "3"]
[White "XDPS"]
[Black "only_strong_moves"]
[Result "1-0"]
[WhiteElo "2879"]
[BlackElo "2655"]
[TimeControl "180+1"]
[EndTime "8:29:40 PDT"]
[Termination "XDPS won on time"]

1. d4 {[%clk 0:03:00.9]} 1... Nf6 {[%clk 0:02:59.8]} 2. Nf3 {[%clk 0:03:01.3]}
2... e6 {[%clk 0:02:58.4]} 3. Bf4 {[%clk 0:03:01.4]} 3... d5 {[%clk 0:02:58]} 4.
e3 {[%clk 0:03:01.9]} 4... c5 {[%clk 0:02:57.9]} 5. Nbd2 {[%clk 0:03:01.7]} 5...
Nc6 {[%clk 0:02:58.3]} 6. c3 {[%clk 0:03:02]} 6... Nh5 {[%clk 0:02:58.8]} 7. Be5
{[%clk 0:03:01.8]} 7... f6 {[%clk 0:02:59.1]} 8. Bg3 {[%clk 0:03:02.1]} 8... g6
{[%clk 0:02:58.7]} 9. Bd3 {[%clk 0:03:02.4]} 9... cxd4 {[%clk 0:02:58.4]} 10.
exd4 {[%clk 0:03:02.3]} 10... Bh6 {[%clk 0:02:57.9]} 11. O-O {[%clk 0:03:02.5]}
11... O-O {[%clk 0:02:58.3]} 12. Re1 {[%clk 0:03:02.8]} 12... Nf4 {[%clk
0:02:58.3]} 13. Bf1 {[%clk 0:03:02.7]} 13... Bd7 {[%clk 0:02:55.9]} 14. a3
{[%clk 0:03:02.5]} 14... a6 {[%clk 0:02:54.1]} 15. c4 {[%clk 0:03:02.8]} 15...
Rc8 {[%clk 0:02:49.2]} 16. c5 {[%clk 0:02:58.1]} 16... Re8 {[%clk 0:02:42.3]}
17. b4 {[%clk 0:02:56]} 17... e5 {[%clk 0:02:34.5]} 18. dxe5 {[%clk 0:02:44.1]}
18... fxe5 {[%clk 0:02:35.4]} 19. Nb3 {[%clk 0:02:26]} 19... Bg4 {[%clk
0:02:28.2]} 20. h3 {[%clk 0:02:17.8]} 20... Bh5 {[%clk 0:02:28.1]} 21. Bxf4
{[%clk 0:02:18.1]} 21... Bxf4 {[%clk 0:02:19]} 22. g4 {[%clk 0:02:17.9]} 22...
e4 {[%clk 0:02:19.5]} 23. Nfd4 {[%clk 0:02:13.3]} 23... Qg5 {[%clk 0:01:33.8]}
24. Bg2 {[%clk 0:02:07.9]} 24... Ne5 {[%clk 0:01:23.3]} 25. gxh5 {[%clk
0:01:38.6]} 25... gxh5 {[%clk 0:01:22.8]} 26. Kh1 {[%clk 0:01:38.7]} 26... Kh8
{[%clk 0:01:22.4]} 27. Rg1 {[%clk 0:01:36.3]} 27... Nd3 {[%clk 0:01:14.6]} 28.
Ra2 {[%clk 0:01:33.7]} 28... Bb8 {[%clk 0:01:03.9]} 29. Bf1 {[%clk 0:01:01.7]}
29... Qf4 {[%clk 0:00:56.3]} 30. Rg2 {[%clk 0:00:57.6]} 30... Rg8 {[%clk
0:00:44.2]} 31. Bxd3 {[%clk 0:00:43.4]} 31... Rxg2 {[%clk 0:00:43.8]} 32. Kxg2
{[%clk 0:00:41.6]} 32... Qh2+ {[%clk 0:00:41.7]} 33. Kf1 {[%clk 0:00:41.8]}
33... Qh1+ {[%clk 0:00:30.2]} 34. Ke2 {[%clk 0:00:36.3]} 34... exd3+ {[%clk
0:00:29.9]} 35. Qxd3 {[%clk 0:00:37.2]} 35... Re8+ {[%clk 0:00:29.2]} 36. Kd2
{[%clk 0:00:36.4]} 36... Bf4+ {[%clk 0:00:24.3]} 37. Kc2 {[%clk 0:00:32.7]}
37... Qe1 {[%clk 0:00:14.2]} 38. Qf3 {[%clk 0:00:24.8]} 38... Re4 {[%clk
0:00:10.5]} 39. Ra1 {[%clk 0:00:22.9]} 39... Rxd4 {[%clk 0:00:03.5]} 40. Rxe1
{[%clk 0:00:22.3]} 1-0

[Event "Early-Titled-Tuesday-Blitz-June-18-2024"]
[Site "Chess.com"]
[Date "2024.06.18"]
[Round "3"]
[White "Iskusnyh"]
[Black "MaxLeto"]
[Result "1-0"]
[WhiteElo "2661"]
[BlackElo "2461"]
[TimeControl "180+1"]
[EndTime "8:29:40 PDT"]
[Termination "Iskusnyh won by checkmate"]

1. d4 {[%clk 0:03:00.9]} 1... h5 {[%clk 0:02:59.7]} 2. c4 {[%clk 0:02:57.7]}
2... h4 {[%clk 0:03:00.6]} 3. Nc3 {[%clk 0:02:55.7]} 3... d6 {[%clk 0:03:00.2]}
4. e4 {[%clk 0:02:55]} 4... h3 {[%clk 0:03:00.4]} 5. g4 {[%clk 0:02:50]} 5... e5
{[%clk 0:02:59.7]} 6. d5 {[%clk 0:02:49]} 6... Qh4 {[%clk 0:02:39.3]} 7. Be2
{[%clk 0:02:43.7]} 7... Nf6 {[%clk 0:02:18.3]} 8. Nf3 {[%clk 0:02:32]} 8... Qh7
{[%clk 0:00:40.1]} 9. Nd2 {[%clk 0:02:07.8]} 9... Na6 {[%clk 0:00:31.7]} 10. g5
{[%clk 0:01:51]} 10... Nh5 {[%clk 0:00:25.8]} 11. Nb3 {[%clk 0:01:25.3]} 11...
Be7 {[%clk 0:00:21.7]} 12. Be3 {[%clk 0:01:22.3]} 12... Nf4 {[%clk 0:00:20]} 13.
Bf3 {[%clk 0:01:20.9]} 13... Bxg5 {[%clk 0:00:15.7]} 14. Qd2 {[%clk 0:01:09.7]}
14... Ng2+ {[%clk 0:00:09.6]} 15. Kd1 {[%clk 0:01:06.5]} 15... Nxe3+ {[%clk
0:00:08.3]} 16. fxe3 {[%clk 0:01:06.8]} 16... Qh6 {[%clk 0:00:08.3]} 17. Re1
{[%clk 0:01:06]} 17... Bd7 {[%clk 0:00:08.3]} 18. Kc2 {[%clk 0:01:04.8]} 18...
O-O {[%clk 0:00:08.3]} 19. Re2 {[%clk 0:01:03.8]} 19... Rac8 {[%clk 0:00:08.4]}
20. Rg1 {[%clk 0:01:02.7]} 20... Rfd8 {[%clk 0:00:08.2]} 21. Qe1 {[%clk
0:01:01.8]} 21... f6 {[%clk 0:00:08.2]} 22. Qg3 {[%clk 0:01:00.3]} 22... c6
{[%clk 0:00:08.1]} 23. Kb1 {[%clk 0:00:58.8]} 23... Nc5 {[%clk 0:00:03]} 24.
Nxc5 {[%clk 0:00:57.7]} 24... dxc5 {[%clk 0:00:03.9]} 25. Bg4 {[%clk 0:00:57.7]}
25... Bxg4 {[%clk 0:00:03.4]} 26. Qxg4 {[%clk 0:00:58]} 26... Rc7 {[%clk
0:00:03.1]} 27. Rg3 {[%clk 0:00:57.9]} 27... Qg6 {[%clk 0:00:01.5]} 28. Rxh3
{[%clk 0:00:55.6]} 28... a6 {[%clk 0:00:02]} 29. Rg3 {[%clk 0:00:55.6]} 29...
Qh6 {[%clk 0:00:02.3]} 30. Rh3 {[%clk 0:00:43.1]} 30... Qg6 {[%clk 0:00:02.1]}
31. Rh5 {[%clk 0:00:42.9]} 31... Qf7 {[%clk 0:00:01.3]} 32. h4 {[%clk
0:00:41.5]} 32... g6 {[%clk 0:00:01.1]} 33. Rxg5 {[%clk 0:00:28.5]} 33... fxg5
{[%clk 0:00:01]} 34. Qxg5 {[%clk 0:00:28.9]} 34... Qg7 {[%clk 0:00:01.4]} 35.
Qxd8+ {[%clk 0:00:27.5]} 35... Kh7 {[%clk 0:00:01.2]} 36. h5 {[%clk 0:00:25.4]}
36... Rf7 {[%clk 0:00:01.1]} 37. hxg6+ {[%clk 0:00:24.9]} 37... Qxg6 {[%clk
0:00:02]} 38. Rh2+ {[%clk 0:00:23.8]} 38... Kg7 {[%clk 0:00:02.9]} 39. Qh8#
{[%clk 0:00:23.3]} 1-0

[Event "Early-Titled-Tuesday-Blitz-June-18-2024"]
[Site "Chess.com"]
[Date "2024.06.18"]
[Round "3"]
[White "ferrufino64"]
[Black "aot317"]
[Result "0-1"]
[WhiteElo "2295"]
[BlackElo "2517"]
[TimeControl "180+1"]
[EndTime "8:29:40 PDT"]
[Termination "aot317 won on time"]

1. e4 {[%clk 0:03:00.9]} 1... c5 {[%clk 0:02:56.1]} 2. Nf3 {[%clk 0:03:00.7]}
2... e6 {[%clk 0:02:56.3]} 3. g3 {[%clk 0:02:59.8]} 3... d5 {[%clk 0:02:54.9]}
4. exd5 {[%clk 0:02:59.8]} 4... exd5 {[%clk 0:02:55.3]} 5. d4 {[%clk 0:03:00.5]}
5... Nf6 {[%clk 0:02:55.3]} 6. Bg2 {[%clk 0:03:00.5]} 6... Nc6 {[%clk 0:02:56]}
7. O-O {[%clk 0:02:59.5]} 7... Bg4 {[%clk 0:02:55.8]} 8. Re1+ {[%clk 0:02:46.4]}
8... Be7 {[%clk 0:02:56.3]} 9. dxc5 {[%clk 0:02:45.1]} 9... O-O {[%clk
0:02:56.8]} 10. Qd3 {[%clk 0:02:42.5]} 10... Bxc5 {[%clk 0:02:50.7]} 11. Nc3
{[%clk 0:02:41.3]} 11... Qd7 {[%clk 0:02:34.8]} 12. Bg5 {[%clk 0:02:37]} 12...
Bf5 {[%clk 0:02:32.9]} 13. Qb5 {[%clk 0:02:35.4]} 13... b6 {[%clk 0:02:10.2]}
14. Rad1 {[%clk 0:02:33.6]} 14... Bxc2 {[%clk 0:02:04.4]} 15. Rd2 {[%clk
0:02:17.7]} 15... a6 {[%clk 0:01:47.6]} 16. Qf1 {[%clk 0:01:55.7]} 16... Bg6
{[%clk 0:01:25.1]} 17. Bxf6 {[%clk 0:01:43]} 17... gxf6 {[%clk 0:01:26]} 18.
Nxd5 {[%clk 0:01:37.9]} 18... Qf5 {[%clk 0:01:26.6]} 19. Nh4 {[%clk 0:01:36.2]}
19... Qg5 {[%clk 0:01:23.4]} 20. Kh1 {[%clk 0:01:04.9]} 20... Qxd2 {[%clk
0:01:12.7]} 21. Nxf6+ {[%clk 0:00:36.8]} 21... Kg7 {[%clk 0:01:12.1]} 22. Ne4
{[%clk 0:00:35.3]} 22... Bxe4 {[%clk 0:00:51.6]} 23. Bxe4 {[%clk 0:00:34.8]}
23... Rac8 {[%clk 0:00:33.6]} 24. Re2 {[%clk 0:00:22.9]} 24... Qb4 {[%clk
0:00:27.2]} 25. Qh3 {[%clk 0:00:21.6]} 25... Ne7 {[%clk 0:00:22.3]} 26. Nf3
{[%clk 0:00:14.7]} 26... Ng6 {[%clk 0:00:21.9]} 27. Ng5 {[%clk 0:00:13]} 27...
h6 {[%clk 0:00:19.7]} 28. Nf3 {[%clk 0:00:08.3]} 28... Rcd8 {[%clk 0:00:18.2]}
29. Qf5 {[%clk 0:00:08.4]} 29... Rd1+ {[%clk 0:00:16.2]} 30. Kg2 {[%clk
0:00:08.7]} 30... Qc4 {[%clk 0:00:15.3]} 31. Rc2 {[%clk 0:00:03.2]} 31... Qe6
{[%clk 0:00:14.7]} 32. Qxe6 {[%clk 0:00:03.1]} 32... fxe6 {[%clk 0:00:15.6]} 33.
Bxg6 {[%clk 0:00:02.7]} 33... Kxg6 {[%clk 0:00:15.2]} 34. Ne5+ {[%clk
0:00:03.1]} 34... Kg7 {[%clk 0:00:15.6]} 35. b4 {[%clk 0:00:02.5]} 35... Rxf2+
{[%clk 0:00:14.3]} 36. Rxf2 {[%clk 0:00:01.4]} 36... Bxf2 {[%clk 0:00:15.2]} 0-1

[Event "Early-Titled-Tuesday-Blitz-June-18-2024"]
[Site "Chess.com"]
[Date "2024.06.18"]
[Round "3"]
[White "yonaltimur"]
[Black "AldokhinIvan"]
[Result "0-1"]
[WhiteElo "2334"]
[BlackElo "2635"]
[TimeControl "180+1"]
[EndTime "8:29:43 PDT"]
[Termination "AldokhinIvan won by resignation"]

1. e4 {[%clk 0:02:55.2]} 1... c5 {[%clk 0:01:48.8]} 2. Nf3 {[%clk 0:02:20.6]}
2... e6 {[%clk 0:01:49.5]} 3. d4 {[%clk 0:02:19.5]} 3... cxd4 {[%clk 0:01:50.2]}
4. Nxd4 {[%clk 0:02:20.4]} 4... a6 {[%clk 0:01:50.3]} 5. c4 {[%clk 0:02:09]}
5... Qc7 {[%clk 0:01:50.5]} 6. Nc3 {[%clk 0:02:08.8]} 6... Nf6 {[%clk
0:01:51.1]} 7. Be2 {[%clk 0:02:03.9]} 7... d6 {[%clk 0:01:51.6]} 8. O-O {[%clk
0:02:03.8]} 8... Be7 {[%clk 0:01:52.2]} 9. Be3 {[%clk 0:02:04.2]} 9... b6 {[%clk
0:01:51.7]} 10. a4 {[%clk 0:02:00.5]} 10... Bb7 {[%clk 0:01:52.1]} 11. f3 {[%clk
0:01:59.9]} 11... O-O {[%clk 0:01:52.6]} 12. Kh1 {[%clk 0:01:59.1]} 12... Nbd7
{[%clk 0:01:53.2]} 13. a5 {[%clk 0:01:58.4]} 13... bxa5 {[%clk 0:01:51.2]} 14.
Nb3 {[%clk 0:01:58.2]} 14... Rab8 {[%clk 0:01:51]} 15. Nxa5 {[%clk 0:01:58]}
15... Ba8 {[%clk 0:01:51.4]} 16. Qd2 {[%clk 0:01:58.4]} 16... Rfd8 {[%clk
0:01:27]} 17. Rfd1 {[%clk 0:01:38.8]} 17... Nc5 {[%clk 0:01:19.4]} 18. Na4
{[%clk 0:01:16.9]} 18... Nxa4 {[%clk 0:01:05.3]} 19. Rxa4 {[%clk 0:01:17.8]}
19... d5 {[%clk 0:01:05.6]} 20. cxd5 {[%clk 0:01:05]} 20... exd5 {[%clk
0:01:04.7]} 21. Bf4 {[%clk 0:01:00.5]} 21... Bd6 {[%clk 0:01:03.9]} 22. Bxd6
{[%clk 0:00:54.4]} 22... Qxd6 {[%clk 0:01:03.2]} 23. Rd4 {[%clk 0:00:33.9]}
23... Qc7 {[%clk 0:00:57.5]} 24. exd5 {[%clk 0:00:30.9]} 24... Rxd5 {[%clk
0:00:55.7]} 25. Rxd5 {[%clk 0:00:28.7]} 25... Bxd5 {[%clk 0:00:36.2]} 26. Rc1
{[%clk 0:00:28]} 26... Qb6 {[%clk 0:00:33.2]} 27. Nc4 {[%clk 0:00:25.5]} 27...
Bxc4 {[%clk 0:00:24.5]} 28. Bxc4 {[%clk 0:00:23.7]} 28... h5 {[%clk 0:00:18.9]}
29. b3 {[%clk 0:00:21.7]} 29... Rd8 {[%clk 0:00:15.6]} 30. Qe2 {[%clk
0:00:19.1]} 30... Re8 {[%clk 0:00:10]} 31. Qd3 {[%clk 0:00:16.2]} 31... a5
{[%clk 0:00:09.4]} 32. Rd1 {[%clk 0:00:12.4]} 32... Qf2 {[%clk 0:00:08.9]} 33.
Qg6 {[%clk 0:00:11.4]} 33... Re1+ {[%clk 0:00:07.2]} 0-1

[Event "Early-Titled-Tuesday-Blitz-June-18-2024"]
[Site "Chess.com"]
[Date "2024.06.18"]
[Round "3"]
[White "ChEsper99"]
[Black "ploxoi"]
[Result "0-1"]
[WhiteElo "2262"]
[BlackElo "2500"]
[TimeControl "180+1"]
[EndTime "8:29:43 PDT"]
[Termination "ploxoi won by resignation"]

1. c4 {[%clk 0:03:00.9]} 1... e6 {[%clk 0:02:59.8]} 2. d4 {[%clk 0:02:59.4]}
2... d5 {[%clk 0:03:00.7]} 3. Nc3 {[%clk 0:02:59.5]} 3... c6 {[%clk 0:02:59.5]}
4. e4 {[%clk 0:02:57.2]} 4... dxe4 {[%clk 0:02:57.9]} 5. Nxe4 {[%clk 0:02:58.1]}
5... Bb4+ {[%clk 0:02:58.2]} 6. Bd2 {[%clk 0:02:57.3]} 6... Qxd4 {[%clk
0:02:58.2]} 7. Bxb4 {[%clk 0:02:57.6]} 7... Qxe4+ {[%clk 0:02:58.4]} 8. Be2
{[%clk 0:02:42.4]} 8... Na6 {[%clk 0:02:56.3]} 9. Ba5 {[%clk 0:02:35.7]} 9... b6
{[%clk 0:02:48.2]} 10. Bc3 {[%clk 0:02:33.4]} 10... Ne7 {[%clk 0:02:46.7]} 11.
Bxg7 {[%clk 0:02:20.7]} 11... Rg8 {[%clk 0:02:44.1]} 12. Bc3 {[%clk 0:02:17.2]}
12... Rxg2 {[%clk 0:02:38.9]} 13. Nf3 {[%clk 0:02:17.4]} 13... Bd7 {[%clk
0:02:35]} 14. Qd2 {[%clk 0:01:48.5]} 14... O-O-O {[%clk 0:02:26.9]} 15. Rf1
{[%clk 0:00:31]} 15... Be8 {[%clk 0:02:20.1]} 16. Qh6 {[%clk 0:00:20]} 16... Nc5
{[%clk 0:02:18.1]} 17. Rd1 {[%clk 0:00:10.8]} 17... Nd3+ {[%clk 0:01:31.3]} 18.
Rxd3 {[%clk 0:00:10.7]} 18... Rxd3 {[%clk 0:01:32.2]} 19. Ng5 {[%clk 0:00:11.2]}
19... Qg6 {[%clk 0:00:37.7]} 20. Qxg6 {[%clk 0:00:08.5]} 20... Nxg6 {[%clk
0:00:38.6]} 21. Bxd3 {[%clk 0:00:06.7]} 21... Rxg5 {[%clk 0:00:38.6]} 22. Bf6
{[%clk 0:00:03.6]} 22... Rh5 {[%clk 0:00:36.6]} 23. h4 {[%clk 0:00:02.8]} 23...
Nxh4 {[%clk 0:00:23.6]} 24. Ke2 {[%clk 0:00:03.2]} 24... Ng6 {[%clk 0:00:21.5]}
25. Rd1 {[%clk 0:00:02.9]} 25... Bd7 {[%clk 0:00:17.5]} 26. Bxg6 {[%clk
0:00:01.9]} 26... hxg6 {[%clk 0:00:18.4]} 27. Rg1 {[%clk 0:00:01.6]} 27... c5
{[%clk 0:00:18.6]} 28. Rg5 {[%clk 0:00:01.8]} 28... Rh1 {[%clk 0:00:15.5]} 29.
b3 {[%clk 0:00:01.5]} 29... Rc1 {[%clk 0:00:14.3]} 30. Bg7 {[%clk 0:00:01.4]}
30... Rc2+ {[%clk 0:00:14.4]} 31. Ke3 {[%clk 0:00:02]} 31... Rxa2 {[%clk
0:00:14.7]} 32. Be5 {[%clk 0:00:02.4]} 32... Bc6 {[%clk 0:00:14.7]} 33. Rg3
{[%clk 0:00:02.7]} 33... Ra3 {[%clk 0:00:14.4]} 34. Kf4 {[%clk 0:00:02.7]} 34...
Ra2 {[%clk 0:00:11.9]} 35. Rh3 {[%clk 0:00:02.5]} 35... Rxf2+ {[%clk 0:00:11.7]}
36. Ke3 {[%clk 0:00:02.8]} 36... Rf5 {[%clk 0:00:11.1]} 37. Rh8+ {[%clk
0:00:02.9]} 37... Kd7 {[%clk 0:00:11.5]} 38. Bg3 {[%clk 0:00:02.1]} 38... Rf3+
{[%clk 0:00:11.6]} 0-1

[Event "Early-Titled-Tuesday-Blitz-June-18-2024"]
[Site "Chess.com"]
[Date "2024.06.18"]
[Round "3"]
[White "Shuvalov"]
[Black "IlanSchnaider"]
[Result "0-1"]
[WhiteElo "2598"]
[BlackElo "2834"]
[TimeControl "180+1"]
[EndTime "8:29:44 PDT"]
[Termination "IlanSchnaider won on time"]

1. d4 {[%clk 0:02:57.4]} 1... Nf6 {[%clk 0:02:59.4]} 2. c4 {[%clk 0:02:57.2]}
2... e6 {[%clk 0:02:59.8]} 3. Nc3 {[%clk 0:02:56.9]} 3... Bb4 {[%clk 0:02:58.8]}
4. Qc2 {[%clk 0:02:57.1]} 4... d5 {[%clk 0:02:57.2]} 5. cxd5 {[%clk 0:02:56.5]}
5... exd5 {[%clk 0:02:55.7]} 6. Bg5 {[%clk 0:02:56.4]} 6... Be6 {[%clk
0:02:53.6]} 7. e3 {[%clk 0:02:55]} 7... h6 {[%clk 0:02:50.6]} 8. Bh4 {[%clk
0:02:54.4]} 8... c6 {[%clk 0:02:49.4]} 9. Bd3 {[%clk 0:02:51.3]} 9... Nbd7
{[%clk 0:02:49.6]} 10. Nf3 {[%clk 0:02:46]} 10... O-O {[%clk 0:02:44.3]} 11. h3
{[%clk 0:02:44.1]} 11... Bd6 {[%clk 0:02:43.5]} 12. O-O {[%clk 0:02:35.7]} 12...
Qc7 {[%clk 0:02:40.5]} 13. Bxf6 {[%clk 0:02:32.7]} 13... Nxf6 {[%clk 0:02:39.2]}
14. Rac1 {[%clk 0:02:31.4]} 14... Qe7 {[%clk 0:02:36.4]} 15. a3 {[%clk 0:02:29]}
15... a5 {[%clk 0:02:34]} 16. Na4 {[%clk 0:02:27.5]} 16... Nd7 {[%clk
0:02:31.8]} 17. Rfe1 {[%clk 0:02:12]} 17... Qf6 {[%clk 0:02:29.9]} 18. Nd2
{[%clk 0:02:02.1]} 18... Rfe8 {[%clk 0:02:17.3]} 19. Nb3 {[%clk 0:01:47.1]}
19... Qh4 {[%clk 0:01:56.2]} 20. Bf1 {[%clk 0:01:35.8]} 20... Qh5 {[%clk
0:01:21.7]} 21. Nbc5 {[%clk 0:01:26.6]} 21... Nxc5 {[%clk 0:01:17.9]} 22. Nxc5
{[%clk 0:01:25.2]} 22... Rab8 {[%clk 0:01:03.3]} 23. b4 {[%clk 0:01:13.7]} 23...
axb4 {[%clk 0:01:02]} 24. axb4 {[%clk 0:01:14.6]} 24... Bf5 {[%clk 0:00:58.2]}
25. Qd1 {[%clk 0:01:03.5]} 25... Qg6 {[%clk 0:00:57.5]} 26. Kh1 {[%clk
0:00:53.7]} 26... b6 {[%clk 0:00:52.9]} 27. Nd3 {[%clk 0:00:50.6]} 27... Rbc8
{[%clk 0:00:51.2]} 28. Qd2 {[%clk 0:00:18.5]} 28... Be4 {[%clk 0:00:49.5]} 29.
Rb1 {[%clk 0:00:13.1]} 29... Qe6 {[%clk 0:00:45.6]} 30. Kg1 {[%clk 0:00:12.3]}
30... Qg6 {[%clk 0:00:38.8]} 31. Rbc1 {[%clk 0:00:09]} 31... Re6 {[%clk
0:00:35.1]} 32. Nf4 {[%clk 0:00:05.8]} 32... Bxf4 {[%clk 0:00:31.1]} 33. exf4
{[%clk 0:00:06.7]} 33... Qf6 {[%clk 0:00:25.6]} 34. g3 {[%clk 0:00:05.6]} 34...
Rce8 {[%clk 0:00:22.4]} 35. Re3 {[%clk 0:00:04.7]} 35... Qg6 {[%clk 0:00:18.7]}
36. Kh2 {[%clk 0:00:03.4]} 36... h5 {[%clk 0:00:18]} 37. h4 {[%clk 0:00:03.4]}
37... R6e7 {[%clk 0:00:18]} 38. Rce1 {[%clk 0:00:03.1]} 38... Qd6 {[%clk
0:00:17.8]} 0-1

[Event "Early-Titled-Tuesday-Blitz-June-18-2024"]
[Site "Chess.com"]
[Date "2024.06.18"]
[Round "3"]
[White "KnightDuta"]
[Black "dropstoneDP"]
[Result "0-1"]
[WhiteElo "2746"]
[BlackElo "2979"]
[TimeControl "180+1"]
[EndTime "8:29:45 PDT"]
[Termination "dropstoneDP won on time"]

1. e4 {[%clk 0:03:00.9]} 1... e5 {[%clk 0:02:58.9]} 2. Nf3 {[%clk 0:03:01]} 2...
Nf6 {[%clk 0:02:58.5]} 3. Nxe5 {[%clk 0:03:00.2]} 3... d6 {[%clk 0:02:59.1]} 4.
Nf3 {[%clk 0:03:00.5]} 4... Nxe4 {[%clk 0:02:59]} 5. d4 {[%clk 0:03:01.1]} 5...
d5 {[%clk 0:02:57.2]} 6. Bd3 {[%clk 0:03:01.8]} 6... Bf5 {[%clk 0:02:57.6]} 7.
O-O {[%clk 0:03:02.2]} 7... Be7 {[%clk 0:02:58.1]} 8. c4 {[%clk 0:02:40.2]} 8...
dxc4 {[%clk 0:02:48.4]} 9. Bxc4 {[%clk 0:02:41.1]} 9... O-O {[%clk 0:02:47.7]}
10. Nc3 {[%clk 0:02:41.7]} 10... Nc6 {[%clk 0:02:46.5]} 11. Re1 {[%clk
0:02:40.4]} 11... Nd6 {[%clk 0:02:44]} 12. Bd5 {[%clk 0:02:27.7]} 12... Nb4
{[%clk 0:02:42.1]} 13. Bb3 {[%clk 0:02:26.4]} 13... Nd3 {[%clk 0:02:40.4]} 14.
Rf1 {[%clk 0:02:24]} 14... c6 {[%clk 0:02:34.2]} 15. Ne5 {[%clk 0:02:20.5]}
15... Nxc1 {[%clk 0:02:16.9]} 16. Rxc1 {[%clk 0:02:21.4]} 16... Bf6 {[%clk
0:02:16.1]} 17. Qf3 {[%clk 0:02:19.8]} 17... Qa5 {[%clk 0:01:49.9]} 18. Rfe1
{[%clk 0:01:37.9]} 18... Rae8 {[%clk 0:01:46.5]} 19. Re2 {[%clk 0:01:36.1]}
19... Bxe5 {[%clk 0:01:45]} 20. dxe5 {[%clk 0:01:36.6]} 20... Rxe5 {[%clk
0:01:45.9]} 21. Rd1 {[%clk 0:01:31.8]} 21... Rxe2 {[%clk 0:01:40.8]} 22. Qxe2
{[%clk 0:01:32.7]} 22... Nb5 {[%clk 0:01:35.2]} 23. Qe5 {[%clk 0:01:23.8]} 23...
Bg6 {[%clk 0:01:25.1]} 24. h4 {[%clk 0:01:05.1]} 24... b6 {[%clk 0:01:02]} 25.
Qe7 {[%clk 0:00:21]} 25... h5 {[%clk 0:00:44.7]} 26. Nxb5 {[%clk 0:00:06.3]}
26... Qxb5 {[%clk 0:00:42.2]} 27. Qxa7 {[%clk 0:00:06.4]} 27... Qb4 {[%clk
0:00:42.6]} 28. Qc7 {[%clk 0:00:05.8]} 28... c5 {[%clk 0:00:37.7]} 29. Qg3
{[%clk 0:00:06.3]} 29... Kh7 {[%clk 0:00:35.8]} 30. Rc1 {[%clk 0:00:05.9]} 30...
Re8 {[%clk 0:00:34.2]} 31. Qg5 {[%clk 0:00:03.8]} 31... f6 {[%clk 0:00:30.3]}
32. Qg3 {[%clk 0:00:01.9]} 32... Re4 {[%clk 0:00:27.3]} 33. Bc2 {[%clk
0:00:01.7]} 33... Re1+ {[%clk 0:00:23.8]} 34. Rxe1 {[%clk 0:00:01.7]} 34...
Qxe1+ {[%clk 0:00:23.6]} 35. Kh2 {[%clk 0:00:02.1]} 35... Bxc2 {[%clk
0:00:24.1]} 36. Qf3 {[%clk 0:00:02.5]} 36... Qe5+ {[%clk 0:00:24]} 37. g3 {[%clk
0:00:02.2]} 37... Bg6 {[%clk 0:00:24.6]} 38. Qe2 {[%clk 0:00:02.6]} 38... Qxe2
{[%clk 0:00:24.7]} 0-1

[Event "Early-Titled-Tuesday-Blitz-June-18-2024"]
[Site "Chess.com"]
[Date "2024.06.18"]
[Round "3"]
[White "MikeSailer"]
[Black "Karina_Ivanova"]
[Result "0-1"]
[WhiteElo "2061"]
[BlackElo "2274"]
[TimeControl "180+1"]
[EndTime "8:29:45 PDT"]
[Termination "Karina_Ivanova won on time"]

1. d4 {[%clk 0:03:00]} 1... Nf6 {[%clk 0:02:59.2]} 2. Nf3 {[%clk 0:03:00.1]}
2... e6 {[%clk 0:02:55.7]} 3. Bg5 {[%clk 0:02:59.7]} 3... h6 {[%clk 0:02:53.2]}
4. Bh4 {[%clk 0:02:59.7]} 4... c5 {[%clk 0:02:50.3]} 5. c3 {[%clk 0:02:41.9]}
5... Nc6 {[%clk 0:02:45.1]} 6. Nbd2 {[%clk 0:02:35.1]} 6... d5 {[%clk
0:02:42.5]} 7. e3 {[%clk 0:02:34.5]} 7... Bd6 {[%clk 0:02:39.5]} 8. Bd3 {[%clk
0:02:33.1]} 8... O-O {[%clk 0:02:38.1]} 9. O-O {[%clk 0:02:31.6]} 9... cxd4
{[%clk 0:02:30.1]} 10. exd4 {[%clk 0:02:31.2]} 10... Be7 {[%clk 0:02:26.8]} 11.
Re1 {[%clk 0:02:30.7]} 11... b6 {[%clk 0:02:24.7]} 12. Rc1 {[%clk 0:01:59.8]}
12... Bb7 {[%clk 0:02:21.1]} 13. Bb1 {[%clk 0:01:58.8]} 13... Rc8 {[%clk
0:02:15.6]} 14. a3 {[%clk 0:01:57.7]} 14... b5 {[%clk 0:02:01.2]} 15. Qc2 {[%clk
0:01:37.7]} 15... Ne4 {[%clk 0:01:54.8]} 16. Bxe7 {[%clk 0:01:32.5]} 16... Nxe7
{[%clk 0:01:54.5]} 17. Nxe4 {[%clk 0:01:29]} 17... dxe4 {[%clk 0:01:53.9]} 18.
Nd2 {[%clk 0:01:26.5]} 18... f5 {[%clk 0:01:52.6]} 19. Nb3 {[%clk 0:01:25.6]}
19... Bd5 {[%clk 0:01:44.1]} 20. Nc5 {[%clk 0:01:25.2]} 20... e5 {[%clk
0:01:41.1]} 21. b4 {[%clk 0:01:21.5]} 21... exd4 {[%clk 0:01:40.1]} 22. cxd4
{[%clk 0:01:21.1]} 22... Nc6 {[%clk 0:01:36.1]} 23. Red1 {[%clk 0:01:20.4]}
23... Qf6 {[%clk 0:01:35]} 24. Ba2 {[%clk 0:01:14.5]} 24... Rfd8 {[%clk
0:01:23.1]} 25. Bxd5+ {[%clk 0:01:14]} 25... Rxd5 {[%clk 0:01:22.6]} 26. Qa2
{[%clk 0:01:01]} 26... Qf7 {[%clk 0:01:20.1]} 27. Qe2 {[%clk 0:00:55.9]} 27...
Nxd4 {[%clk 0:01:12.6]} 28. Qe3 {[%clk 0:00:23.3]} 28... Rcd8 {[%clk 0:01:08.6]}
29. Re1 {[%clk 0:00:22.1]} 29... Kh7 {[%clk 0:00:56]} 30. g3 {[%clk 0:00:22.4]}
30... Nf3+ {[%clk 0:00:51.9]} 31. Kg2 {[%clk 0:00:22.3]} 31... Nxe1+ {[%clk
0:00:51.5]} 32. Rxe1 {[%clk 0:00:22.8]} 32... Rd2 {[%clk 0:00:45.9]} 33. Qf4
{[%clk 0:00:17]} 33... Qd5 {[%clk 0:00:44.3]} 34. Kh3 {[%clk 0:00:10.9]} 34...
g5 {[%clk 0:00:37.7]} 35. Qc7+ {[%clk 0:00:09]} 35... Kg6 {[%clk 0:00:36.8]} 36.
Qe7 {[%clk 0:00:03.9]} 36... Rxf2 {[%clk 0:00:31.6]} 37. Rh1 {[%clk 0:00:01.1]}
37... Qd6 {[%clk 0:00:24]} 0-1